[Event "Nordic Chess-ch 2019"]
[Site "Sarpsborg"]
[Date "2019.06.26"]
[Round "8.42"]
[White "Eiding, Amanda Mai Irgens"]
[Black "Hoiom, Jonas"]
[Result "*"]
[ECO "B13"]
[WhiteElo "1655"]
[BlackElo "1317"]
[Annotator "NA RC"]
[PlyCount "99"]
[EventDate "2019.06.21"]
[EventType "swiss"]
[EventCountry "NOR"]
[SourceTitle "playchess.com"]
[Source "ChessBase"]
[SourceQuality "1"]
[TimeControl "40/5400+30:1800+30"]

1. e4 {[%emt 0:00:00]} c6 {[%emt 0:00:00]} 2. d4 {[%emt 0:00:00]} d5 {[%emt 1:31:00]} 3. exd5 {[%emt 1:31:30]} cxd5 {[%emt 0:00:00]} 4. c4 {[%emt 0:00:00]} Nf6 {[%emt 0:00:00]} 5. Nc3 {[%emt 0:00:00]} Bf5 {[%emt 0:00:00]} 6. Nf3 {[%emt 0:00:00]} e6 {[%emt 0:00:00]} 7. Bg5 {[%emt 0:00:00]} Be7 {[%emt 0:00:00]} 8. cxd5 {[%emt 0:00:00]} Nxd5 {[%emt 0:00:00]} 9. Bxe7 {[%emt 0:00:00]} Qxe7 {[%emt 0:00:00]} 10. Bb5+ {[%emt 0:00:00]} Kf8 {[%emt 0:00:00]} 11. O-O {[%emt 0:00:00]} Nd7 {[%emt 0:00:00]} 12. Re1 {[%emt 0:00:00]} Nxc3 {[%emt 0:00:00]} 13. bxc3 {[%emt 0:00:00]} f6 {[%emt 0:00:00]} 14. Nh4 {[%emt 0:00:00]} Bg6 {[%emt 0:00:00]} 15. Nxg6+ {[%emt 0:00:00]} hxg6 {[%emt 0:00:00]} 16. Qg4 {[%emt 0:00:00]} Qd6 {[%emt 0:00:00]} 17. Qg3 {[%emt 0:00:00]} Qxg3 {[%emt 0:00:00]} 18. hxg3 {[%emt 0:00:00]} Ke7 {[%emt 0:00:00]} 19. Rab1 {[%emt 0:00:00]} b6 {[%emt 0:00:00]} 20. Rb2 {[%emt 0:00:00]} Rh5 {[%emt 0:00:00]} 21. Ba4 {[%emt 0:00:00]} Rah8 {[%emt 0:00:00]} 22. f3 {[%emt 0:00:00]} Rh1+ {[%emt 0:00:00]} 23. Kf2 {[%emt 0:00:00]} Rxe1 {[%emt 0:00:00]} 24. Kxe1 {[%emt 0:00:00]} Rh1+ {[%emt 0:00:00]} 25. Kd2 {[%emt 0:00:00]} Rg1 {[%emt 0:00:00]} 26. Kd3 {[%emt 0:00:00]} Kd6 {[%emt 0:00:00]} 27. c4 {[%emt 0:00:00]} e5 {[%emt 0:00:00]} 28. Bxd7 {[%emt 0:00:00]} Kxd7 {[%emt 0:00:00]} 29. d5 {[%emt 0:00:00]} Kd6 {[%emt 0:00:00]} 30. Rc2 {[%emt 0:00:00]} Kc5 {[%emt 0:00:00]} 31. Ke3 {[%emt 0:00:00]} Re1+ {[%emt 0:00:00]} 32. Kf2 {[%emt 0:00:00]} Ra1 {[%emt 0:00:00]} 33. Rd2 {[%emt 0:00:00]} Kd6 {[%emt 0:00:00]} 34. Ke3 {[%emt 0:00:00]} Rb1 {[%emt 0:00:00]} 35. Kd3 {[%emt 0:00:00]} Rb4 {[%emt 0:00:00]} 36. Kc3 {[%emt 0:00:00]} a5 {[%emt 0:00:00]} 37. Rb2 {[%emt 0:00:00]} Rxb2 {[%emt 0:00:00]} 38. Kxb2 {[%emt 0:00:00]} f5 {[%emt 0:00:00]} 39. Kc3 {[%emt 0:00:00]} g5 {[%emt 0:00:00]} 40. Kd3 {[%emt 0:00:00]} Kc5 {[%emt 0:00:00]} 41. a4 {[%emt 0:00:09]} Kd6 {[%emt 0:13:22]} 42. Ke3 {[%emt 0:00:13]} Kc5 {[%emt 0:00:39]} 43. f4 {[%emt 0:00:20]} e4 {[%emt 0:00:46]} 44. fxg5 {[%emt 0:00:20]} g6 {[%emt 0:00:50]} 45. g4 {[%emt 0:00:06]} Kd6 {[%emt 0:01:17]} 46. gxf5 {[%emt 0:00:10]} gxf5 {[%emt 0:00:18]} 47. g6 {[%emt 0:00:09]} Ke7 {[%emt 0:00:20]} 48. g7 {[%emt 0:00:23]} Kf7 {[%emt 0:00:14]} 49. d6 {[%emt 0:00:06]} Kxg7 {[%emt 0:00:17]} 50. d7 {[%emt 0:00:06]} *

[Event "Nordic Chess-ch 2019"]
[Site "Sarpsborg"]
[Date "2019.06.27"]
[Round "9.1"]
[White "Holm, Kristian Stuvik"]
[Black "Urkedal, Frode Olav Olsen"]
[Result "1/2-1/2"]
[ECO "D37"]
[WhiteElo "2474"]
[BlackElo "2525"]
[Annotator "RC"]
[PlyCount "23"]
[EventDate "2019.06.21"]
[EventType "swiss"]
[EventCountry "NOR"]
[SourceTitle "playchess.com"]
[Source "ChessBase"]
[SourceQuality "1"]
[TimeControl "40/5400+30:1800+30"]

1. Nf3 {[%emt 0:00:00]} Nf6 {[%emt 0:00:00]} 2. c4 {[%emt 0:00:00]} e6 {[%emt 0:00:00]} 3. Nc3 {[%emt 0:00:00]} d5 {[%emt 0:00:19]} 4. d4 {[%emt 0:00:01]} Be7 {[%emt 0:01:14]} 5. Bf4 {[%emt 0:00:21]} O-O {[%emt 0:00:47]} 6. e3 {[%emt 0:00:05]} Nbd7 {[%emt 0:00:42]} 7. a3 {[%emt 0:00:15]} c5 {[%emt 0:00:45]} 8. cxd5 {[%emt 0:00:34]} Nxd5 {[%emt 0:00:21]} 9. Nxd5 {[%emt 0:00:07]} exd5 {[%emt 0:00:04]} 10. dxc5 {[%emt 0:00:11]} Nxc5 {[%emt 0:00:06]} 11. Be5 {[%emt 0:00:06]} Bf6 {[%emt 0:06:20]} 12. Be2 {[%emt 0:00:38]} 1/2-1/2

[Event "Nordic Chess-ch 2019"]
[Site "Sarpsborg"]
[Date "2019.06.27"]
[Round "9.2"]
[White "Notkevich, Benjamin Arvola"]
[Black "Hammer, Jon Ludvig"]
[Result "1-0"]
[ECO "D43"]
[WhiteElo "2485"]
[BlackElo "2645"]
[Annotator "RC"]
[PlyCount "63"]
[EventDate "2019.06.21"]
[EventType "swiss"]
[EventCountry "NOR"]
[SourceTitle "playchess.com"]
[Source "ChessBase"]
[SourceQuality "1"]
[TimeControl "40/5400+30:1800+30"]

1. Nf3 {[%emt 0:00:00]} d5 {[%emt 1:30:30]} 2. c4 {[%emt 0:00:08]} c6 {[%emt 0:00:00]} 3. d4 {[%emt 0:00:07]} Nf6 {[%emt 0:00:00]} 4. Nc3 {[%emt 0:00:08]} e6 {[%emt 0:00:00]} 5. Bg5 {[%emt 0:00:08]} h6 {[%emt 0:00:00]} 6. Bh4 {[%emt 0:00:53]} dxc4 {[%emt 0:00:00]} 7. e4 {[%emt 0:00:08]} g5 {[%emt 0:00:00]} 8. Bg3 {[%emt 0:00:04]} b5 {[%emt 0:00:00]} 9. Be2 {[%emt 0:07:36]} Bb7 {[%emt 0:00:00]} 10. O-O {[%emt 0:00:34]} Nbd7 {[%emt 0:00:00]} 11. Ne5 {[%emt 0:03:27]} Bg7 {[%emt 0:00:00]} 12. a4 {[%emt 0:02:28]} a6 {[%emt 0:00:00]} 13. Nxf7 {[%emt 0:03:47]} Kxf7 {[%emt 0:00:00]} 14. e5 {[%emt 0:00:03]} Nd5 {[%emt 0:00:00]} 15. Ne4 {[%emt 0:00:07]} Kg8 {[%emt 0:00:00]} 16. Nd6 {[%emt 0:01:29]} Qb6 {[%emt 0:00:00]} 17. a5 {[%emt 0:26:22]} Qc7 {[%emt 0:00:00]} 18. Bh5 {[%emt 0:05:33]} Rh7 {[%emt 0:00:00]} 19. Bf7+ {[%emt 0:02:18]} Kh8 {[%emt 0:00:00]} 20. Bxe6 {[%emt 0:00:15]} Nf8 {[%emt 0:00:00]} 21. Bxd5 {[%emt 0:20:05]} cxd5 {[%emt 0:00:00]} 22. f4 {[%emt 0:00:04]} Ne6 {[%emt 0:00:00]} 23. Qg4 {[%emt 0:15:38]} Bc8 {[%emt 0:00:00]} 24. f5 {[%emt 0:02:16]} Nf4 {[%emt 0:00:03]} 25. Bxf4 {[%emt 0:05:40]} gxf4 {[%emt 0:00:09]} 26. Rxf4 {[%emt 0:00:34]} b4 {[%emt 0:03:40]} 27. Qg6 {[%emt 0:02:26]} Bf8 {[%emt 0:01:25]} 28. f6 {[%emt 0:00:16]} Bd7 {[%emt 0:04:03]} 29. f7 {[%emt 0:00:52]} Rg7 {[%emt 0:03:41]} 30. Qxh6+ {[%emt 0:00:06]} Rh7 {[%emt 0:00:04]} 31. Qg6 {[%emt 0:00:20]} Bg7 {[%emt 0:00:25]} 32. Ne8 {[%emt 0:00:18]} 1-0

[Event "Nordic Chess-ch 2019"]
[Site "Sarpsborg"]
[Date "2019.06.27"]
[Round "9.7"]
[White "Hobber, Anders"]
[Black "Lindgren, Philip"]
[Result "1-0"]
[ECO "A07"]
[WhiteElo "2282"]
[BlackElo "2384"]
[Annotator "NA"]
[PlyCount "149"]
[EventDate "2019.06.21"]
[EventType "swiss"]
[EventCountry "NOR"]
[SourceTitle "playchess.com"]
[Source "ChessBase"]
[SourceQuality "1"]
[TimeControl "40/5400+30:1800+30"]

1. Nf3 {[%emt 0:00:00]} d5 {[%emt 0:03:30]} 2. g3 {[%emt 0:00:29]} g6 {[%emt 0:01:06]} 3. Bg2 {[%emt 0:00:36]} Bg7 {[%emt 0:00:10]} 4. O-O {[%emt 0:01:55]} e5 {[%emt 0:00:26]} 5. d3 {[%emt 0:00:43]} Ne7 {[%emt 0:01:51]} 6. e4 {[%emt 0:02:43]} O-O {[%emt 0:01:17]} 7. exd5 {[%emt 0:01:56]} Nxd5 {[%emt 0:00:29]} 8. Re1 {[%emt 0:01:59]} Nc6 {[%emt 0:00:27]} 9. Nbd2 {[%emt 0:11:38]} Re8 {[%emt 0:19:24] A07: Réti Opening: New York and Capablanca Systems} 10. a4 {[%emt 0:13:37]} (10. a3 Bf5 11. Ne4 b6 12. Bg5 f6 13. c4 Bxe4 14. Rxe4 Nde7 15. Bc1 Qd7 16. Re1 Rad8 17. Bf1 {0-1 (29) Mamedyarov,S (2801)-Giri,A (2782) chess.com INT 2018}) 10... h6 {[%emt 0:07:26]} 11. c3 {[%emt 0:06:30]} Bf5 {[%emt 0:09:25]} 12. Ne4 {[%emt 0:07:24]} a5 {[%emt 0:16:18]} 13. Qb3 $146 {[%emt 0:06:40]} ({Predecessor:} 13. Nh4 Bc8 14. Qb3 Nde7 15. Be3 g5 16. Bxg5 hxg5 17. Nxg5 {½-½ (26) Arizmendi Martinez,J-Sanchez Guirado,F (2330) Mislata 1993}) 13... Nb6 {[%emt 0:10:30]} 14. Nc5 {[%emt 0:07:35]} Bxd3 {[%emt 0:03:16]} 15. Nxb7 {[%emt 0:11:07]} Qe7 {[%emt 0:01:55]} 16. Nd2 {[%emt 0:03:00]} e4 {[%emt 0:05:37]} 17. Bxe4 {[%emt 0:01:18]} Rab8 {[%emt 0:02:17]} 18. Re3 {[%emt 0:01:23]} Bxe4 {[%emt 0:01:28]} 19. Nxe4 {[%emt 0:02:01]} Ne5 {[%emt 0:01:59]} 20. Nec5 {[%emt 0:03:29]} Nbc4 {[%emt 0:01:39]} 21. Rxe5 {[%emt 0:04:07]} Nxe5 {[%emt 0:00:55]} 22. Bf4 {[%emt 0:00:26]} Nf3+ {[%emt 0:02:23]} 23. Kg2 {[%emt 0:00:54]} Ne1+ {[%emt 0:00:34]} 24. Rxe1 {[%emt 0:03:36]} Qxe1 {[%emt 0:00:15]} 25. Qd5 {[%emt 0:01:01]} Qe7 {[%emt 0:03:06]} 26. Qc6 {[%emt 0:01:37]} g5 {[%emt 0:01:46]} 27. Be3 {[%emt 0:00:51]} Be5 {[%emt 0:00:42]} 28. Qxh6 {[%emt 0:00:44]} f6 {[%emt 0:00:51]} 29. Nxa5 {[%emt 0:01:38]} Qh7 {[%emt 0:02:26]} 30. Qxh7+ {[%emt 0:00:32]} Kxh7 {[%emt 0:00:04]} 31. Nc4 {[%emt 0:00:29]} Kg6 {[%emt 0:00:42]} 32. Nxe5+ {[%emt 0:01:52]} Rxe5 {[%emt 0:01:13]} 33. b4 $1 {[%emt 0:00:06]} ({But not} 33. Nd7 Rxb2 34. Nxe5+ fxe5 $17) 33... Rd8 {[%emt 0:00:31]} 34. Kf3 {[%emt 0:01:19]} Rd1 {[%emt 0:00:24]} 35. a5 {[%emt 0:01:02]} Rb1 {[%emt 0:00:34]} 36. g4 {[%emt 0:00:39]} c6 {[%emt 0:00:28]} 37. Nd7 {[%emt 0:00:38]} Rd5 {[%emt 0:00:30]} 38. Nb8 {[%emt 0:00:39]} (38. Nc5 $11 {keeps the balance.}) 38... c5 {[%emt 0:00:33]} (38... Rd3 $17 39. Nxc6 Rxc3 40. Ne7+ Kf7) 39. Nc6 {[%emt 0:00:01]} (39. a6 $14) 39... Kf7 $2 {[%emt 0:00:30]} (39... Rd6 $15 {stays ahead.} 40. Ne7+ Kf7) 40. Bxc5 {[%emt 0:00:31]} Rd3+ {[%emt 0:00:30]} (40... f5 $16) 41. Ke4 {[%emt 0:30:52]} Rxc3 {[%emt 0:30:23]} 42. Kd5 {[%emt 0:00:00]} Rd1+ {[%emt 0:00:00] [#]} (42... Ra3 $16) 43. Nd4 $2 {[%emt 0:00:00]} (43. Bd4 $1 $18) 43... Ke8 $14 {[%emt 0:00:00]} 44. a6 {[%emt 0:00:00]} Kd7 {[%emt 0:00:00]} 45. a7 {[%emt 0:00:00]} Ra1 {[%emt 0:00:00]} 46. Nb5 {[%emt 0:00:00]} Rc2 {[%emt 0:00:00]} 47. Bb6 {[%emt 0:00:00]} Rc6 {[%emt 0:00:00]} 48. Bc5 {[%emt 0:00:00]} Re6 {[%emt 0:00:00]} 49. Bd4 {[%emt 0:00:00]} Ra2 {[%emt 0:00:00]} 50. Kc4 {[%emt 0:01:06]} Kc6 {[%emt 0:00:00]} 51. Nc3 {[%emt 0:00:47]} Ra3 {[%emt 0:00:42]} 52. b5+ {[%emt 0:00:14]} Kb7 {[%emt 0:00:19]} 53. Kd5 {[%emt 0:00:27]} Re8 {[%emt 0:03:25]} 54. Ne4 {[%emt 0:00:24]} Rd8+ {[%emt 0:01:37]} 55. Nd6+ {[%emt 0:01:12]} Rxd6+ {[%emt 0:01:05]} 56. Kxd6 {[%emt 0:00:05]} Rd3 {[%emt 0:00:30]} 57. Kd5 {[%emt 0:00:08]} Rh3 {[%emt 0:00:31]} 58. Ke6 {[%emt 0:00:29]} Rf3 {[%emt 0:00:26]} 59. b6 {[%emt 0:00:32]} Rf4 {[%emt 0:00:26]} 60. Be3 {[%emt 0:00:38]} Rxg4 {[%emt 0:00:33]} 61. Kxf6 {[%emt 0:00:27]} Rg2 {[%emt 0:00:31]} 62. h3 {[%emt 0:00:41]} Rh2 {[%emt 0:00:31]} 63. Kxg5 {[%emt 0:00:13]} Rxh3 {[%emt 0:00:05]} 64. Kg4 {[%emt 0:00:13]} Rh1 {[%emt 0:00:40]} 65. f4 {[%emt 0:00:18]} Re1 {[%emt 0:00:22]} 66. Kf3 {[%emt 0:00:13]} Ra1 {[%emt 0:00:28]} 67. Ke4 {[%emt 0:00:08]} Ra4+ {[%emt 0:00:21]} 68. Bd4 {[%emt 0:00:10]} Ra2 {[%emt 0:00:28]} 69. f5 {[%emt 0:00:34]} Re2+ {[%emt 0:00:30]} 70. Be3 {[%emt 0:00:44]} Re1 {[%emt 0:00:09]} 71. f6 {[%emt 0:00:30]} Rf1 {[%emt 0:00:33]} 72. Bd4 {[%emt 0:00:09]} Re1+ {[%emt 0:00:27]} 73. Kd5 {[%emt 0:00:06]} Re8 {[%emt 0:01:16]} 74. f7 {[%emt 0:00:19]} Rd8+ {[%emt 0:00:32]} 75. Ke5 {[%emt 0:00:20]} 1-0

[Event "Nordic Chess-ch 2019"]
[Site "Sarpsborg"]
[Date "2019.06.27"]
[Round "9.12"]
[White "Sahl, Sheila Barth"]
[Black "Vestby-Ellingsen, Mads"]
[Result "1-0"]
[ECO "D02"]
[WhiteElo "2127"]
[BlackElo "2345"]
[Annotator "NA"]
[PlyCount "139"]
[EventDate "2019.06.21"]
[EventType "swiss"]
[EventCountry "NOR"]
[SourceTitle "playchess.com"]
[Source "ChessBase"]
[SourceQuality "1"]
[TimeControl "40/5400+30:1800+30"]

1. d4 {[%emt 0:00:00]} Nf6 {[%emt 0:00:02]} 2. Bf4 {[%emt 0:00:00]} d5 {[%emt 0:00:34]} 3. Nf3 {[%emt 0:00:18]} c5 {[%emt 0:00:19]} 4. e3 {[%emt 0:00:08]} Nc6 {[%emt 0:00:15]} 5. Nbd2 {[%emt 0:00:16]} (5. Be2 cxd4 6. exd4 Bg4 7. c3 e6 8. Nbd2 Bd6 9. Ne5 Bxe2 10. Qxe2 O-O 11. O-O Qc7 12. Rfe1 Nd7 13. Nxd7 Qxd7 14. Bxd6 Qxd6 15. Nb3 Rab8 {½-½ (36) Carlsen,M (2861)-Ding,L (2805) Abidjan 2019}) 5... cxd4 {[%emt 0:04:23]} 6. exd4 {[%emt 0:00:08] D02: 1 d4 d5 2 Nf3 sidelines, including 2...Nf6 3 g3 and 2...Nf6 3 Bf4} Qb6 {[%emt 0:01:00]} 7. Nb3 {[%emt 0:01:10]} Bg4 {[%emt 0:00:44]} 8. Be2 $146 {[%emt 0:00:52]} ({Predecessor:} 8. c3 e6 9. Be2 Be7 10. h3 Bh5 11. O-O O-O 12. a4 {½-½ (71) Sarana,A (2562)-Izoria,Z (2599) chess.com INT 2018}) 8... e6 {[%emt 0:00:28]} 9. O-O {[%emt 0:01:15]} Be7 {[%emt 0:02:46]} 10. a4 {[%emt 0:01:28]} a6 {[%emt 0:12:18]} 11. h3 {[%emt 0:04:59]} Bh5 {[%emt 0:01:19]} 12. c3 {[%emt 0:04:44]} O-O {[%emt 0:02:58]} 13. Re1 {[%emt 0:04:55]} Rac8 {[%emt 0:02:52]} 14. Ne5 {[%emt 0:10:45]} Bxe2 {[%emt 0:01:25]} 15. Rxe2 {[%emt 0:01:32]} Qd8 {[%emt 0:05:02]} 16. Nc1 {[%emt 0:02:50]} Nxe5 {[%emt 0:06:17]} 17. Bxe5 {[%emt 0:00:48]} Nd7 {[%emt 0:03:11]} 18. Bf4 {[%emt 0:01:54]} Nb6 {[%emt 0:06:03]} 19. Nd3 {[%emt 0:12:35]} Nc4 {[%emt 0:01:18]} 20. b3 {[%emt 0:01:21]} Nd6 {[%emt 0:01:15]} 21. Rc2 {[%emt 0:07:47]} Ne4 {[%emt 0:06:00]} 22. f3 {[%emt 0:04:02]} Nf6 {[%emt 0:07:49]} 23. a5 {[%emt 0:01:41]} Nh5 {[%emt 0:07:27]} 24. Be5 {[%emt 0:01:49]} Bd6 {[%emt 0:01:02]} 25. b4 {[%emt 0:06:02]} f6 {[%emt 0:04:03]} 26. Bxd6 {[%emt 0:01:48]} Qxd6 {[%emt 0:00:10]} 27. Qe1 {[%emt 0:02:28]} Rfe8 {[%emt 0:02:54]} 28. Re2 {[%emt 0:09:39]} Ng3 {[%emt 0:05:32]} 29. Re3 {[%emt 0:01:35]} Nf5 {[%emt 0:00:09]} 30. Re2 {[%emt 0:00:05]} Ng3 {[%emt 0:00:42]} 31. Re3 {[%emt 0:00:24]} Nf5 {[%emt 0:00:10]} 32. Re2 {[%emt 0:00:07]} Rc7 {[%emt 0:00:41]} 33. Rd1 {[%emt 0:06:00]} Rce7 {[%emt 0:01:31]} 34. f4 {[%emt 0:08:11]} Nh6 {[%emt 0:00:56]} 35. Qg3 {[%emt 0:00:45]} b6 {[%emt 0:11:01]} 36. axb6 {[%emt 0:00:38]} Qxb6 {[%emt 0:00:07] [#]} 37. Ra1 $1 {[%emt 0:01:37]} Nf5 {[%emt 0:01:04] [#]} 38. Qf2 $1 {[%emt 0:00:31]} Ra8 {[%emt 0:00:08]} (38... Qb5 $16 39. Nc5 Qc4) 39. Rea2 {[%emt 0:01:17]} Rea7 {[%emt 0:00:27]} 40. Nc5 {[%emt 0:00:55]} Kh8 {[%emt 0:03:06]} 41. Qe2 {[%emt 0:30:31]} Qc7 $2 {[%emt 0:11:42]} (41... h6 42. Qe1 (42. Qxe6 Qxe6 43. Nxe6 Nd6 $16) (42. Rxa6 Rxa6 43. Rxa6 Rxa6 $16) (42. Nxe6 Re8 $15) 42... a5) 42. Rxa6 {[%emt 0:00:00]} Rxa6 {[%emt 0:02:28]} 43. Rxa6 {[%emt 0:00:00]} Rxa6 $18 {[%emt 0:00:21]} 44. Qxa6 {[%emt 0:00:00]} h6 {[%emt 0:01:05]} 45. Qxe6 {[%emt 0:00:00]} Qxf4 {[%emt 0:00:41]} 46. Nd3 {[%emt 0:00:00]} Qg5 {[%emt 0:00:44]} 47. b5 {[%emt 0:00:00]} Ne3 {[%emt 0:11:41]} 48. g4 {[%emt 0:00:00]} f5 {[%emt 0:00:08]} 49. Qe8+ {[%emt 0:00:16]} Kh7 {[%emt 0:00:05]} 50. Qe5 {[%emt 0:04:54]} Kh8 {[%emt 0:01:42]} 51. Nf4 {[%emt 0:00:00]} Nc4 {[%emt 0:01:53]} 52. Qxf5 {[%emt 0:00:00]} Qd8 {[%emt 0:00:06]} 53. Ng6+ {[%emt 0:00:00]} Kh7 {[%emt 0:00:07]} 54. Ne5+ {[%emt 0:00:25]} Kg8 {[%emt 0:00:07]} 55. Nxc4 {[%emt 0:00:57]} dxc4 {[%emt 0:00:07]} 56. Qe6+ {[%emt 0:00:09]} Kh8 {[%emt 0:00:30]} 57. Qxc4 {[%emt 0:00:11]} Qa8 {[%emt 0:00:38]} 58. Qd3 {[%emt 0:00:18]} Qa1+ {[%emt 0:00:46]} 59. Kg2 {[%emt 0:00:20]} Qb2+ {[%emt 0:00:11]} 60. Kg3 {[%emt 0:00:09]} Qc1 {[%emt 0:00:11]} 61. Kf3 {[%emt 0:02:20]} Qh1+ {[%emt 0:00:10]} 62. Ke2 {[%emt 0:00:16]} Qg2+ {[%emt 0:02:01]} 63. Kd1 {[%emt 0:00:06]} Qg1+ {[%emt 0:00:07]} 64. Kc2 {[%emt 0:00:15]} Qf2+ {[%emt 0:00:12]} 65. Kb3 {[%emt 0:00:13]} Qf7+ {[%emt 0:00:11]} 66. c4 {[%emt 0:00:17]} h5 {[%emt 0:00:17]} 67. gxh5 {[%emt 0:00:23]} g6 {[%emt 0:00:08]} 68. hxg6 {[%emt 0:00:41]} Qd7 {[%emt 0:00:32]} 69. Qf3 {[%emt 0:00:21]} Qd6 {[%emt 0:01:55]} 70. Qh5+ {[%emt 0:00:22]} 1-0

[Event "Nordic Chess-ch 2019"]
[Site "Sarpsborg"]
[Date "2019.06.27"]
[Round "9.13"]
[White "Cederstam Barsk, Carl"]
[Black "Nilsen, Tobias Lang"]
[Result "1-0"]
[ECO "A34"]
[WhiteElo "2334"]
[BlackElo "1986"]
[Annotator "RC"]
[PlyCount "65"]
[EventDate "2019.06.21"]
[EventType "swiss"]
[EventCountry "NOR"]
[SourceTitle "playchess.com"]
[Source "ChessBase"]
[SourceQuality "1"]
[TimeControl "40/5400+30:1800+30"]

1. Nf3 {[%emt 0:00:00]} Nf6 {[%emt 0:00:00]} 2. c4 {[%emt 0:00:00]} c5 {[%emt 0:00:00]} 3. Nc3 {[%emt 0:00:00]} d5 {[%emt 0:00:13]} 4. cxd5 {[%emt 0:00:11]} Nxd5 {[%emt 0:00:07]} 5. g3 {[%emt 0:00:35]} Nc6 {[%emt 0:00:07]} 6. Bg2 {[%emt 0:00:05]} Nc7 {[%emt 0:00:22]} 7. a3 {[%emt 0:07:58]} e5 {[%emt 0:04:38]} 8. b4 {[%emt 0:01:04]} f6 {[%emt 0:15:08]} 9. Rb1 {[%emt 0:24:50]} Be7 {[%emt 0:15:57]} 10. O-O {[%emt 0:09:09]} O-O {[%emt 0:01:37]} 11. bxc5 {[%emt 0:04:31]} Bxc5 {[%emt 0:57:21]} 12. Qc2 {[%emt 0:01:02]} Ne6 {[%emt 0:00:00]} 13. Na4 {[%emt 0:04:59]} Be7 {[%emt 0:00:00]} 14. e3 {[%emt 0:00:09]} f5 {[%emt 0:00:00]} 15. d4 {[%emt 0:00:01]} exd4 {[%emt 0:00:00]} 16. Rd1 {[%emt 0:00:02]} Kh8 {[%emt 0:00:00]} 17. exd4 {[%emt 0:09:22]} Nexd4 {[%emt 0:00:00]} 18. Nxd4 {[%emt 0:00:02]} Nxd4 {[%emt 0:00:00]} 19. Qb2 {[%emt 0:00:39]} Bf6 {[%emt 0:00:00]} 20. Be3 {[%emt 0:00:10]} Bd7 {[%emt 0:00:00]} 21. Rxd4 {[%emt 0:03:37]} Bxd4 {[%emt 0:00:00]} 22. Qxd4 {[%emt 0:00:02]} Bc6 {[%emt 0:00:00]} 23. Bxc6 {[%emt 0:00:48]} bxc6 {[%emt 0:00:00]} 24. Rb7 {[%emt 0:00:35]} Qf6 {[%emt 0:00:00]} 25. Nc5 {[%emt 0:02:41]} Rad8 {[%emt 0:00:00]} 26. Qxf6 {[%emt 0:00:24]} Rxf6 {[%emt 0:00:00]} 27. Rxa7 {[%emt 0:00:27]} h6 {[%emt 0:00:00]} 28. h4 {[%emt 0:02:12]} Rd5 {[%emt 0:00:00]} 29. Nd7 {[%emt 0:08:45]} Rf7 {[%emt 0:00:00]} 30. Ra8+ {[%emt 0:00:10]} Kh7 {[%emt 0:00:00]} 31. Nf8+ {[%emt 0:00:10]} Kg8 {[%emt 0:00:00]} 32. Ng6+ {[%emt 0:00:04]} Kh7 {[%emt 0:00:00]} 33. h5 {[%emt 0:00:10]} 1-0

[Event "Nordic Chess-ch 2019"]
[Site "Sarpsborg"]
[Date "2019.06.27"]
[Round "9.14"]
[White "Sjoberg, Isak"]
[Black "Fernandez, Juan Pablo"]
[Result "1-0"]
[ECO "B27"]
[WhiteElo "2222"]
[BlackElo "2066"]
[Annotator "RC"]
[PlyCount "77"]
[EventDate "2019.06.21"]
[EventType "swiss"]
[EventCountry "NOR"]
[SourceTitle "playchess.com"]
[Source "ChessBase"]
[SourceQuality "1"]
[TimeControl "40/5400+30:1800+30"]

1. e4 {[%emt 0:00:25]} c5 {[%emt 0:00:00]} 2. Nf3 {[%emt 0:00:53]} g6 {[%emt 0:00:00]} 3. c3 {[%emt 0:00:19]} Bg7 {[%emt 0:00:00]} 4. d4 {[%emt 0:00:04]} cxd4 {[%emt 0:00:00]} 5. cxd4 {[%emt 0:00:07]} d5 {[%emt 0:00:00]} 6. e5 {[%emt 0:00:10]} Nc6 {[%emt 0:00:07]} 7. Bb5 {[%emt 0:00:05]} Bg4 {[%emt 0:00:14]} 8. Bxc6+ {[%emt 0:00:11]} bxc6 {[%emt 0:00:06]} 9. Nbd2 {[%emt 0:00:05]} f6 {[%emt 0:02:01]} 10. h3 {[%emt 0:05:32]} Bxf3 {[%emt 0:00:21]} 11. Nxf3 {[%emt 0:00:06]} fxe5 {[%emt 0:00:47]} 12. dxe5 {[%emt 0:09:24]} e6 {[%emt 0:01:47]} 13. O-O {[%emt 0:06:02]} Nh6 {[%emt 0:01:58]} 14. Qa4 {[%emt 0:06:01]} Qd7 {[%emt 0:03:58]} 15. Qa3 {[%emt 0:01:19]} Qe7 {[%emt 0:04:48]} 16. Qa6 {[%emt 0:05:01]} O-O {[%emt 0:04:10]} 17. Qxc6 {[%emt 0:03:51]} Rac8 {[%emt 0:06:17]} 18. Qa6 {[%emt 0:00:29]} Nf7 {[%emt 0:04:02]} 19. Bf4 {[%emt 0:05:26]} Rc4 {[%emt 0:03:24]} 20. Bg3 {[%emt 0:01:09]} Rfc8 {[%emt 0:03:31]} 21. b3 {[%emt 0:02:46]} R4c6 {[%emt 0:05:16]} 22. Qa4 {[%emt 0:04:10]} h5 {[%emt 0:04:14]} 23. Rfe1 {[%emt 0:12:01]} Rc3 {[%emt 0:03:22]} 24. Nd4 {[%emt 0:03:50]} Ng5 {[%emt 0:21:47]} 25. Nb5 {[%emt 0:04:55]} Rxg3 {[%emt 0:00:55]} 26. fxg3 {[%emt 0:00:22]} Ne4 {[%emt 0:00:39]} 27. Nd6 {[%emt 0:04:38]} Nxd6 {[%emt 0:00:44]} 28. exd6 {[%emt 0:00:12]} Qxd6 {[%emt 0:00:17]} 29. Rac1 {[%emt 0:00:20]} Rxc1 {[%emt 0:00:30]} 30. Rxc1 {[%emt 0:00:30]} Qxg3 {[%emt 0:00:30]} 31. Qxa7 {[%emt 0:00:30]} d4 {[%emt 0:00:30]} 32. Qa8+ {[%emt 0:00:30]} Kh7 {[%emt 0:00:30]} 33. Qf3 {[%emt 0:00:30]} Qg5 {[%emt 0:00:30]} 34. Rd1 {[%emt 0:00:30]} Be5 {[%emt 0:00:30]} 35. a4 {[%emt 0:00:30]} Bf4 {[%emt 0:00:30]} 36. Rf1 {[%emt 0:00:30]} e5 {[%emt 0:00:30]} 37. g3 {[%emt 0:00:30]} d3 {[%emt 0:00:30]} 38. Kh2 {[%emt 0:00:30]} e4 {[%emt 0:00:30]} 39. gxf4 {[%emt 0:00:30]} 1-0